fUSD/lending_fUSD_20240615
["ID","MTS","AMOUNT","RATE_DAILY","PERIOD"]
[329514951,1718410279122,-500.0,0.00022739,3]
[329514952,1718410279133,-195.27605577,0.00022739,3]
[329514953,1718410279152,-500.0,0.00022739,3]
[329514954,1718410279185,-500.0,0.00022739,3]
[329514955,1718410279204,-500.0,0.00022739,3]
[329514956,1718410279219,-500.0,0.00022739,3]
[329514957,1718410279234,-500.0,0.00022739,3]
[329514958,1718410279247,-500.0,0.00022739,3]
[329514959,1718410279261,-557.17,0.00022739,3]
[329514960,1718410279280,-675.73,0.00022739,3]
[329514961,1718410279302,-500.0,0.00022739,3]
[329514962,1718410279318,-500.0,0.00022739,3]
[329514963,1718410279331,-513.06,0.00022739,3]
[329514964,1718410279344,-14489.11,0.00022739,3]
[329514965,1718410279373,-500.0,0.00022739,3]
[329514966,1718410279433,-500.0,0.00022739,3]
[329514967,1718410279450,-500.0,0.00022739,3]
[329514968,1718410279496,-500.0,0.00022739,3]
[329514969,1718410279533,-500.0,0.00022739,3]
[329514970,1718410279547,-625.2942605,0.00022739,3]
[329514971,1718410279571,-200.58,0.00022739,3]
[329514972,1718410279778,-1484.64,0.00022739,3]
[329514973,1718410279819,-500.0,0.00022739,3]
[329514974,1718410279830,-600.32,0.00022739,3]
[329514975,1718410279841,-173.74791792,0.00022739,3]
[329514976,1718410279865,-500.0,0.00022739,3]
[329514977,1718410279883,-500.0,0.00022739,3]
[329514978,1718410279897,-500.0,0.00022739,3]
[329514979,1718410279915,-500.0,0.00022739,3]
[329514980,1718410279930,-500.0,0.00022739,3]
[329514981,1718410279951,-500.0,0.00022739,3]
[329514982,1718410279986,-500.0,0.00022739,3]
[329514983,1718410279997,-500.0,0.00022739,3]
[329514984,1718410280024,-500.0,0.00022739,3]
[329514985,1718410280053,-500.0,0.00022739,3]
[329514986,1718410280081,-500.0,0.00022739,3]
[329514987,1718410280103,-500.0,0.00022739,3]
[329514988,1718410280146,-500.0,0.00022739,3]
[329514989,1718410280173,-500.0,0.00022739,3]
[329514990,1718410280184,-500.0,0.00022739,3]
[329514991,1718410280196,-500.0,0.00022739,3]
[329514992,1718410280210,-3525.04,0.00022739,3]
[329514993,1718410280236,-500.0,0.00022739,3]
[329514994,1718410280292,-500.0,0.00022739,3]
[329514995,1718410280306,-500.0,0.00022739,3]
[329514996,1718410280332,-500.0,0.00022739,3]
[329514997,1718410280342,-1618.45,0.00022739,3]
[329514998,1718410280354,-1550.33,0.00022739,3]
[329514999,1718410280369,-500.0,0.00022739,3]
[329515000,1718410280392,-500.0,0.00022739,3]
[329515001,1718410280409,-500.0,0.00022739,3]
[329515002,1718410280419,-500.0,0.00022739,3]
[329515003,1718410280448,-500.0,0.00022739,3]
[329515004,1718410280459,-587.66,0.00022739,3]
[329515005,1718410280479,-500.0,0.00022739,3]
[329515006,1718410280492,-500.0,0.00022739,3]
[329515007,1718410280506,-500.0,0.00022739,3]
[329515008,1718410280519,-500.0,0.00022739,3]
[329515009,1718410280531,-1023.73,0.00022739,3]
[329515010,1718410280549,-500.0,0.00022739,3]
[329515011,1718410280572,-500.0,0.00022739,3]
[329515012,1718410280634,-500.0,0.00022739,3]
[329515013,1718410280672,-500.0,0.00022739,3]
[329515014,1718410280696,-500.0,0.00022739,3]
[329515015,1718410280728,-500.0,0.00022739,3]
[329515016,1718410280756,-500.0,0.00022739,3]
[329515017,1718410280780,-809.82,0.00022739,3]
[329515018,1718410280792,-21338.5,0.00022739,3]
[329515019,1718410280860,-500.0,0.00022739,3]
[329515020,1718410280876,-500.0,0.00022739,3]
[329515021,1718410280889,-500.0,0.00022739,3]
[329515022,1718410280924,-500.0,0.00022739,3]
[329515023,1718410280948,-500.0,0.00022739,3]
[329515024,1718410280963,-521.9,0.00022739,3]
[329515025,1718410280979,-990.64,0.00022739,3]
[329515026,1718410281032,-1229.59,0.00022739,3]
[329515027,1718410281054,-500.0,0.00022739,3]
[329515028,1718410281079,-500.0,0.00022739,3]
[329515029,1718410281116,-807.18,0.00022739,3]
[329515030,1718410281133,-669.58,0.00022739,3]
[329515031,1718410281154,-500.0,0.00022739,3]
[329515032,1718410281165,-500.0,0.00022739,3]
[329515033,1718410281176,-500.0,0.00022739,3]
[329515034,1718410281190,-500.0,0.00022739,3]
[329515035,1718410281201,-500.0,0.00022739,3]
[329515036,1718410281220,-612.37,0.00022739,3]
[329515037,1718410281231,-5017.63,0.00022739,3]
[329515038,1718410281243,-714.36,0.00022739,3]
[329515039,1718410281255,-500.0,0.00022739,3]
[329515040,1718410281284,-500.0,0.00022739,3]
[329515041,1718410281309,-500.0,0.00022739,3]
[329515042,1718410281338,-500.0,0.00022739,3]
[329515043,1718410281350,-500.0,0.00022739,3]
[329515044,1718410281388,-1125.2,0.00022739,3]
[329515045,1718410281399,-500.0,0.00022739,3]
[329515046,1718410281420,-500.0,0.00022739,3]
[329515047,1718410281445,-844.74,0.00022739,3]
[329515048,1718410281458,-500.0,0.00022739,3]
[329515049,1718410281470,-500.0,0.00022739,3]
[329515050,1718410281481,-500.0,0.00022739,3]
[329515051,1718410281496,-500.0,0.00022739,3]
[329515052,1718410281507,-903.03,0.00022739,3]
[329515053,1718410281544,-500.0,0.00022739,3]
[329515054,1718410281556,-500.0,0.00022739,3]
[329515055,1718410281592,-742.58,0.00022739,3]
[329515056,1718410281617,-500.0,0.00022739,3]
[329515057,1718410281640,-500.0,0.00022739,3]
[329515058,1718410281664,-500.0,0.00022739,3]
[329515059,1718410281688,-500.0,0.00022739,3]
[329515060,1718410281701,-500.0,0.00022739,3]
[329515061,1718410281713,-500.0,0.00022739,3]
[329515062,1718410281724,-500.0,0.00022739,3]
[329515063,1718410281737,-500.0,0.00022739,3]
[329515064,1718410281748,-500.0,0.00022739,3]
[329515065,1718410281760,-500.0,0.00022739,3]
[329515066,1718410281771,-500.0,0.00022739,3]
[329515067,1718410281783,-870.64,0.00022739,3]
[329515068,1718410281795,-527.5688104,0.00022739,3]
[329515069,1718410281806,-500.0,0.00022739,3]
[329515070,1718410281816,-500.0,0.00022739,3]
[329515071,1718410281827,-500.0,0.00022739,3]
[329515072,1718410281848,-500.0,0.00022739,3]
[329515073,1718410281871,-746.77,0.00022739,3]
[329515074,1718410281887,-500.0,0.00022739,3]
[329515075,1718410281901,-500.0,0.00022739,3]
[329515076,1718410281912,-500.0,0.00022739,3]
[329515077,1718410281925,-2631.88,0.00022739,3]
[329515078,1718410281952,-500.0,0.00022739,3]
[329515079,1718410281981,-500.0,0.00022739,3]
[329515080,1718410281999,-558.50732147,0.00022739,3]
[329515081,1718410282015,-500.0,0.00022739,3]
[329515082,1718410282026,-500.0,0.00022739,3]
[329515083,1718410282041,-500.0,0.00022739,3]
[329515084,1718410282055,-500.0,0.00022739,3]
[329515085,1718410282066,-1740.68,0.00022739,3]
[329515086,1718410282077,-500.0,0.00022739,3]
[329515087,1718410282088,-500.0,0.00022739,3]
[329515088,1718410282107,-500.0,0.00022739,3]
[329515089,1718410282126,-2758.28,0.00022739,3]
[329515090,1718410282160,-500.0,0.00022739,3]
[329515091,1718410282179,-2886.16,0.00022739,3]
[329515092,1718410282213,-500.0,0.00022739,3]
[329515093,1718410282226,-500.0,0.00022739,3]
[329515094,1718410282254,-500.0,0.00022739,3]
[329515095,1718410282286,-844.28,0.00022739,3]
[329515096,1718410282319,-1005.14,0.00022841,2]
[329515097,1718410282345,-2988.80474067,0.00022847,2]
[329515098,1718410282436,-1300.0,0.00023,2]
[329515099,1718410282464,-319.13261858,0.00023003,2]
[329515100,1718410282489,-580.25,0.00023013,3]
[329515101,1718410282506,-500.0,0.00023013,3]
[329515102,1718410282520,-188.75,0.00023013,3]
[329515103,1718410282531,-500.0,0.00023013,3]
[329515104,1718410282555,-500.0,0.00023013,2]
[329515105,1718410282568,-500.0,0.00023013,3]
[329515106,1718410282580,-500.0,0.00023013,3]
[329515107,1718410282592,-500.0,0.00023013,3]
[329515108,1718410282605,-410.75,0.00023013,3]
[329515109,1718410282618,-500.0,0.00023013,3]
[329515110,1718410282629,-500.0,0.00023013,3]
[329515111,1718410282641,-500.0,0.00023013,3]
[329515112,1718410282653,-304.02,0.00023013,3]
[329515113,1718410282680,-1383.49,0.00023013,3]
[329515114,1718410282694,-500.0,0.00023013,3]
[329515115,1718410282705,-500.0,0.00023013,3]
[329515116,1718410282716,-500.0,0.00023013,3]
[329515117,1718410282727,-150.0,0.00023013,3]
[329515118,1718410282738,-500.0,0.00023013,3]
[329515119,1718410282749,-500.0,0.00023013,3]
[329515120,1718410282759,-406.9,0.00023013,3]
[329515121,1718410282772,-500.0,0.00023013,3]
[329515122,1718410282784,-500.0,0.00023013,3]
[329515123,1718410282796,-500.0,0.00023013,3]
[329515124,1718410282810,-500.0,0.00023013,3]
[329515125,1718410282822,-500.0,0.00023013,3]
[329515126,1718410282845,-500.0,0.00023013,3]
[329515127,1718410282960,-500.0,0.00023013,3]
[329515128,1718410282973,-500.0,0.00023013,3]
[329515129,1718410282992,-500.0,0.00023013,3]
[329515130,1718410283007,-500.0,0.00023013,3]
[329515131,1718410283037,-500.0,0.00023013,3]
[329515132,1718410283054,-557.17,0.00023013,3]
[329515133,1718410283064,-675.73,0.00023013,3]
[329515134,1718410283124,-14489.11,0.00023013,3]
[329515135,1718410283155,-500.0,0.00023013,3]
[329515136,1718410283182,-500.0,0.00023013,3]
[329515137,1718410283198,-500.0,0.00023013,3]
[329515138,1718410283265,-500.0,0.00023013,3]
[329515139,1718410283296,-500.0,0.00023013,3]
[329515140,1718410283332,-1484.64,0.00023013,3]
[329515141,1718410283360,-351.52863838,0.00023013,3]
[329515142,1718410283407,-500.0,0.00023013,3]
[329515143,1718410283423,-500.0,0.00023013,3]
[329515144,1718410283435,-500.0,0.00023013,3]
[329515145,1718410283457,-500.0,0.00023013,3]
[329515146,1718410283515,-500.0,0.00023013,3]
[329515147,1718410283576,-500.0,0.00023013,3]
[329515148,1718410283593,-500.0,0.00023013,3]
[329515149,1718410283644,-460.55801067,0.00023013,3]
[329515150,1718410283662,-382.48,0.00023013,3]
[329515151,1718410283698,-500.0,0.00023013,3]
[329515152,1718410283731,-500.0,0.00023013,3]
[329515153,1718410283766,-500.0,0.00023013,3]
[329515154,1718410283792,-301.91,0.00023013,3]
[329515155,1718410283856,-3525.04,0.00023013,3]
[329515156,1718410283880,-500.0,0.00023013,3]
[329515157,1718410283894,-500.0,0.00023013,3]
[329515158,1718410283921,-501.83055781,0.00023013,3]
[329515159,1718410283938,-500.0,0.00023013,3]
[329515160,1718410283952,-1618.45,0.00023013,3]
[329515161,1718410283976,-1550.33,0.00023013,3]
[329515162,1718410284011,-500.0,0.00023013,3]
[329515163,1718410284022,-612.78,0.00023013,3]
[329515164,1718410284033,-500.0,0.00023013,3]
[329515165,1718410284044,-500.0,0.00023013,3]
[329515166,1718410284055,-500.0,0.00023013,3]
[329515167,1718410284069,-500.0,0.00023013,3]
[329515168,1718410284097,-489.55,0.00023013,3]
[329515169,1718410284109,-434.66,0.00023013,3]
[329515170,1718410284121,-500.0,0.00023013,3]
[329515171,1718410284163,-1023.73,0.00023013,3]
[329515172,1718410284196,-500.0,0.00023013,3]
[329515173,1718410284216,-500.0,0.00023013,3]
[329515174,1718410284249,-500.0,0.00023013,3]
[329515175,1718410284268,-500.0,0.00023013,3]
[329515176,1718410284321,-500.0,0.00023013,3]
[329515177,1718410284375,-228.40601145,0.00023013,3]
[329515178,1718410284405,-500.0,0.00023013,3]
[329515179,1718410284415,-809.82,0.00023013,3]
[329515180,1718410284427,-21338.5,0.00023013,3]
[329515181,1718410284437,-500.0,0.00023013,3]
[329515182,1718410284450,-500.0,0.00023013,3]
[329515183,1718410284461,-500.0,0.00023013,3]
[329515184,1718410284478,-500.0,0.00023013,3]
[329515185,1718410284501,-500.0,0.00023013,3]
[329515186,1718410284512,-990.64,0.00023013,3]
[329515187,1718410284523,-1229.59,0.00023013,3]
[329515188,1718410284550,-500.0,0.00023013,3]
[329515189,1718410284613,-494.77,0.00023013,3]
[329515190,1718410284627,-807.18,0.00023013,3]
[329515191,1718410284638,-669.58,0.00023013,3]
[329515192,1718410284701,-500.0,0.00023013,3]
[329515193,1718410284740,-500.0,0.00023013,3]
[329515194,1718410284812,-500.0,0.00023013,3]
[329515195,1718410284848,-172.99884045,0.00023013,3]
[329515196,1718410284905,-500.0,0.00023013,3]
[329515197,1718410284944,-612.37,0.00023013,3]
[329515198,1718410284976,-5017.63,0.00023013,3]
[329515199,1718410285043,-714.36,0.00023013,3]
[329515200,1718410285095,-500.0,0.00023013,3]
[329515201,1718410285115,-500.0,0.00023013,3]
[329515202,1718410285131,-500.0,0.00023013,3]
[329515203,1718410285162,-500.0,0.00023013,3]
[329515204,1718410285248,-500.0,0.00023013,3]
[329515205,1718410285321,-1125.2,0.00023013,3]
[329515206,1718410285357,-500.0,0.00023013,3]
[329515207,1718410285420,-500.0,0.00023013,3]
[329515208,1718410285465,-844.74,0.00023013,3]
[329515209,1718410285479,-500.0,0.00023013,3]
[329515210,1718410285589,-500.0,0.00023013,3]
[329515211,1718410285639,-500.0,0.00023013,3]
[329515212,1718410285665,-500.0,0.00023013,3]
[329515213,1718410285760,-500.0,0.00023013,3]
[329515214,1718410285785,-903.03,0.00023013,3]
[329515215,1718410285823,-500.0,0.00023013,3]
[329515216,1718410285840,-742.58,0.00023013,3]
[329515217,1718410285864,-436.89671519,0.00023013,3]
[329515218,1718410285895,-288.74,0.00023013,3]
[329515219,1718410285909,-498.62,0.00023013,3]
[329515220,1718410285965,-500.0,0.00023013,3]
[329515221,1718410286024,-500.0,0.00023013,3]
[329515222,1718410286071,-500.0,0.00023013,3]
[329515223,1718410286110,-500.0,0.00023013,3]
[329515224,1718410286131,-500.0,0.00023013,3]
[329515225,1718410286162,-500.0,0.00023013,3]
[329515226,1718410286174,-500.0,0.00023013,3]
[329515227,1718410286188,-870.64,0.00023013,3]
[329515228,1718410286213,-500.0,0.00023013,3]
[329515229,1718410286271,-500.0,0.00023013,3]
[329515230,1718410286282,-500.0,0.00023013,3]
[329515231,1718410286305,-500.0,0.00023013,3]
[329515232,1718410286319,-500.0,0.00023013,3]
[329515233,1718410286334,-746.77,0.00023013,3]
[329515234,1718410286346,-500.0,0.00023013,3]
[329515235,1718410286374,-500.0,0.00023013,3]
[329515236,1718410286401,-500.0,0.00023013,3]
[329515237,1718410286419,-2631.88,0.00023013,3]
[329515238,1718410286456,-500.0,0.00023013,3]
[329515239,1718410286497,-500.0,0.00023013,3]
[329515240,1718410286519,-500.0,0.00023013,3]
[329515241,1718410286552,-500.0,0.00023013,3]
[329515242,1718410286623,-500.0,0.00023013,3]
[329515243,1718410286637,-500.0,0.00023013,3]
[329515244,1718410286671,-1740.68,0.00023013,3]
[329515245,1718410286750,-500.0,0.00023013,3]
[329515246,1718410286763,-500.0,0.00023013,3]
[329515247,1718410286774,-500.0,0.00023013,3]
[329515248,1718410286790,-2758.28,0.00023013,3]
[329515249,1718410286807,-500.0,0.00023013,3]
[329515250,1718410286847,-2886.16,0.00023013,3]
[329515251,1718410286860,-500.0,0.00023013,3]
[329515252,1718410286896,-500.0,0.00023013,3]
[329515253,1718410286928,-844.28,0.00023013,3]
[329515254,1718410286938,-528.53,0.00023287,3]
[329515255,1718410286950,-500.0,0.00023287,3]
[329515256,1718410286961,-500.0,0.00023287,2]
[329515257,1718410286973,-500.0,0.00023287,3]
[329515258,1718410286988,-500.0,0.00023287,3]
[329515259,1718410286999,-500.0,0.00023287,3]
[329515260,1718410287009,-500.0,0.00023287,3]
[329515261,1718410287019,-500.0,0.00023287,3]
[329515262,1718410287030,-311.19,0.00023287,3]
[329515263,1718410287058,-1383.49,0.00023287,3]
[329515264,1718410287088,-500.0,0.00023287,3]
[329515265,1718410287105,-500.0,0.00023287,3]
[329515266,1718410287157,-500.0,0.00023287,3]
[329515267,1718410287170,-150.0,0.00023287,3]
[329515268,1718410287182,-500.0,0.00023287,3]
[329515269,1718410287197,-282.33,0.00023287,3]
[329515270,1718410287244,-500.0,0.00023287,3]
[329515271,1718410287256,-500.0,0.00023287,3]
[329515272,1718410287267,-175.2525886,0.00023287,3]
[329515273,1718410287279,-500.0,0.00023287,3]
[329515274,1718410287292,-500.0,0.00023287,3]
[329515275,1718410287306,-333.05,0.00023287,3]
[329515276,1718410287322,-500.0,0.00023287,3]
[329515277,1718410287350,-401.58,0.00023287,3]
[329515278,1718410287363,-500.0,0.00023287,3]
[329515279,1718410287383,-557.17,0.00023287,3]
[329515280,1718410287403,-675.73,0.00023287,3]
[329515281,1718410287422,-14489.11,0.00023287,3]
[329515282,1718410287459,-500.0,0.00023287,3]
[329515283,1718410287559,-500.0,0.00023287,3]
[329515284,1718410287572,-500.0,0.00023287,3]
[329515285,1718410287589,-500.47190092,0.00023287,3]
[329515286,1718410287667,-150.8,0.00023287,3]
[329515287,1718410287694,-1484.64,0.00023287,3]
[329515288,1718410287733,-500.0,0.00023287,3]
[329515289,1718410287768,-500.0,0.00023287,3]
[329515290,1718410287801,-500.0,0.00023287,3]
[329515291,1718410287833,-500.0,0.00023287,3]
[329515292,1718410287896,-500.0,0.00023287,3]
[329515293,1718410287917,-500.0,0.00023287,3]
[329515294,1718410287944,-500.0,0.00023287,3]
[329515295,1718410287956,-500.0,0.00023287,3]
[329515296,1718410287999,-500.0,0.00023287,3]
[329515297,1718410288010,-500.0,0.00023287,3]
[329515298,1718410288034,-3525.04,0.00023287,3]
[329515299,1718410288056,-216.09,0.00023287,3]
[329515300,1718410288085,-500.0,0.00023287,3]
[329515301,1718410288095,-246.51,0.00023287,3]
[329515302,1718410288106,-1618.45,0.00023287,3]
[329515303,1718410288148,-1550.33,0.00023287,3]
[329515304,1718410288200,-500.0,0.00023287,3]
[329515305,1718410288224,-295.25,0.00023287,3]
[329515306,1718410288249,-500.0,0.00023287,3]
[329515307,1718410288288,-500.0,0.00023287,3]
[329515308,1718410288364,-500.0,0.00023287,3]
[329515309,1718410288379,-500.0,0.00023287,3]
[329515310,1718410288431,-1023.73,0.00023287,3]
[329515311,1718410288472,-500.0,0.00023287,3]
[329515312,1718410288488,-244.72,0.00023287,3]
[329515313,1718410288527,-500.0,0.00023287,3]
[329515314,1718410288556,-500.0,0.00023287,3]
[329515315,1718410288606,-500.0,0.00023287,3]
[329515316,1718410288656,-244.42,0.00023287,3]
[329515317,1718410288674,-809.82,0.00023287,3]
[329515318,1718410288687,-21338.5,0.00023287,3]
[329515319,1718410288718,-500.0,0.00023287,3]
[329515320,1718410288768,-500.0,0.00023287,3]
[329515321,1718410288789,-500.0,0.00023287,3]
[329515322,1718410288806,-500.0,0.00023287,3]
[329515323,1718410288841,-500.0,0.00023287,3]
[329515324,1718410288865,-990.64,0.00023287,3]
[329515325,1718410288909,-1229.59,0.00023287,3]
[329515326,1718410288932,-500.0,0.00023287,3]
[329515327,1718410288982,-807.18,0.00023287,3]
[329515328,1718410288994,-669.58,0.00023287,3]
[329515329,1718410289010,-500.0,0.00023287,3]
[329515330,1718410289073,-500.0,0.00023287,3]
[329515331,1718410289094,-500.0,0.00023287,3]
[329515332,1718410289148,-500.0,0.00023287,3]
[329515333,1718410289160,-612.37,0.00023287,3]
[329515334,1718410289176,-5017.63,0.00023287,3]
[329515335,1718410289206,-714.36,0.00023287,3]
[329515336,1718410289241,-500.0,0.00023287,3]
[329515337,1718410289269,-500.0,0.00023287,3]
[329515338,1718410289382,-500.0,0.00023287,3]
[329515339,1718410289453,-500.0,0.00023287,3]
[329515340,1718410289489,-500.0,0.00023287,3]
[329515341,1718410289511,-1125.2,0.00023287,3]
[329515342,1718410289531,-500.0,0.00023287,3]
[329515343,1718410289572,-844.74,0.00023287,3]
[329515344,1718410289585,-500.0,0.00023287,3]
[329515345,1718410289604,-500.0,0.00023287,3]
[329515346,1718410289631,-500.0,0.00023287,3]
[329515347,1718410289649,-500.0,0.00023287,3]
[329515348,1718410289678,-500.0,0.00023287,3]
[329515349,1718410289706,-903.03,0.00023287,3]
[329515350,1718410289756,-622.50913505,0.00023287,3]
[329515351,1718410289784,-742.58,0.00023287,3]
[329515352,1718410289812,-500.0,0.00023287,3]
[329515353,1718410289864,-500.0,0.00023287,3]
[329515354,1718410290065,-500.0,0.00023287,3]
[329515355,1718410290116,-500.0,0.00023287,3]
[329515356,1718410290210,-500.0,0.00023287,3]
[329515357,1718410290316,-385.05050992,0.00023287,3]
[329515358,1718410290344,-500.0,0.00023287,3]
[329515359,1718410290369,-870.64,0.00023287,3]
[329515360,1718410290396,-500.0,0.00023287,3]
[329515361,1718410290468,-500.0,0.00023287,3]
[329515362,1718410290488,-500.0,0.00023287,3]
[329515363,1718410290525,-500.0,0.00023287,3]
[329515364,1718410290540,-500.0,0.00023287,3]
[329515365,1718410290555,-746.77,0.00023287,3]
[329515366,1718410290616,-500.0,0.00023287,3]
[329515367,1718410290633,-500.0,0.00023287,3]
[329515368,1718410290643,-500.0,0.00023287,3]
[329515369,1718410290654,-2631.88,0.00023287,3]
[329515370,1718410290675,-500.0,0.00023287,3]
[329515371,1718410290709,-500.0,0.00023287,3]
[329515372,1718410290722,-1740.68,0.00023287,3]
[329515373,1718410290787,-500.0,0.00023287,3]
[329515374,1718410290800,-500.0,0.00023287,3]
[329515375,1718410290817,-500.0,0.00023287,3]
[329515376,1718410290837,-2758.28,0.00023287,3]
[329515377,1718410290874,-500.0,0.00023287,3]
[329515378,1718410290903,-2886.16,0.00023287,3]
[329515379,1718410290930,-500.0,0.00023287,3]
[329515380,1718410290964,-844.28,0.00023287,3]
[329515381,1718410291022,-2988.80474067,0.0002333,2]
[329515382,1718410291035,-152.0,0.00023358,3]
[329515383,1718410291046,-3483.0,0.000234,3]
[329515384,1718410291064,-446.59982923,0.00023484,2]
[329515385,1718410291082,-14383.22907979,0.00023561,2]
[329515386,1718410291096,-500.0,0.00023561,3]
[329515387,1718410291123,-161.65494078,0.00023561,2]
[329515388,1718410291139,-500.0,0.00023561,3]
[329515389,1718410291150,-251.32,0.00023561,3]
[329515390,1718410291160,-500.0,0.00023561,3]
[329515391,1718410291175,-500.0,0.00023561,3]
[329515392,1718410291240,-504.01682136,0.00023561,3]
[329515393,1718410291258,-1383.49,0.00023561,3]
[329515394,1718410291291,-500.0,0.00023561,3]
[329515395,1718410291314,-500.0,0.00023561,3]
[329515396,1718410291370,-500.0,0.00023561,3]
[329515397,1718410291437,-150.0,0.00023561,3]
[329515398,1718410291460,-500.0,0.00023561,3]
[329515399,1718410291481,-500.0,0.00023561,3]
[329515400,1718410291496,-500.0,0.00023561,3]
[329515401,1718410291509,-500.0,0.00023561,3]
[329515402,1718410291574,-505.57,0.00023561,3]
[329515403,1718410291619,-500.0,0.00023561,3]
[329515404,1718410291668,-557.17,0.00023561,3]
[329515405,1718410291689,-675.73,0.00023561,3]
[329515406,1718410291745,-14489.11,0.00023561,3]
[329515407,1718410291766,-500.0,0.00023561,3]
[329515408,1718410291864,-439.03888604,0.00023561,3]
[329515409,1718410291918,-500.0,0.00023561,3]
[329515410,1718410291937,-1484.64,0.00023561,3]
[329515411,1718410291948,-500.0,0.00023561,3]
[329515412,1718410291959,-500.0,0.00023561,3]
[329515413,1718410292016,-500.0,0.00023561,3]
[329515414,1718410292038,-299.54,0.00023561,3]
[329515415,1718410292060,-500.0,0.00023561,3]
[329515416,1718410292072,-320.38,0.00023561,3]
[329515417,1718410292086,-500.0,0.00023561,3]
[329515418,1718410292100,-382.92471554,0.00023561,3]
[329515419,1718410292112,-415.36,0.00023561,3]
[329515420,1718410292141,-500.0,0.00023561,3]
[329515421,1718410292157,-3525.04,0.00023561,3]
[329515422,1718410292170,-500.0,0.00023561,3]
[329515423,1718410292182,-1618.45,0.00023561,3]
[329515424,1718410292232,-1550.33,0.00023561,3]
[329515425,1718410292265,-500.0,0.00023561,3]
[329515426,1718410292294,-500.0,0.00023561,3]
[329515427,1718410292320,-500.0,0.00023561,3]
[329515428,1718410292360,-500.0,0.00023561,3]
[329515429,1718410292374,-500.0,0.00023561,3]
[329515430,1718410292387,-1023.73,0.00023561,3]
[329515431,1718410292397,-500.0,0.00023561,3]
[329515432,1718410292409,-216.23,0.00023561,3]
[329515433,1718410292423,-500.0,0.00023561,3]
[329515434,1718410292481,-500.0,0.00023561,3]
[329515435,1718410292491,-809.82,0.00023561,3]
[329515436,1718410292548,-21338.5,0.00023561,3]
[329515437,1718410292559,-500.0,0.00023561,3]
[329515438,1718410292569,-500.0,0.00023561,3]
[329515439,1718410292588,-500.0,0.00023561,3]
[329515440,1718410292601,-500.0,0.00023561,3]
[329515441,1718410292649,-500.0,0.00023561,3]
[329515442,1718410292676,-990.64,0.00023561,3]
[329515443,1718410292704,-1229.59,0.00023561,3]
[329515444,1718410292756,-500.0,0.00023561,3]
[329515445,1718410292768,-807.18,0.00023561,3]
[329515446,1718410292823,-669.58,0.00023561,3]
[329515447,1718410292836,-500.0,0.00023561,3]
[329515448,1718410292876,-500.0,0.00023561,3]
[329515449,1718410292898,-500.0,0.00023561,3]
[329515450,1718410292959,-594.56478375,0.00023561,3]